[Event "Early-Titled-Tuesday-Blitz-October-03-2023"]
[Site "Chess.com"]
[Date "2023.10.03"]
[Round "6"]
[White "AlexPapasimakopoulos"]
[Black "Lady_Nika"]
[Result "1-0"]
[WhiteElo "2706"]
[BlackElo "2533"]
[TimeControl "180+1"]
[EndTime "9:09:19 PDT"]
[Termination "AlexPapasimakopoulos won by checkmate"]

1. Nf3 {[%clk 0:03:00.9]} 1... d5 {[%clk 0:02:59.7]} 2. g3 {[%clk 0:02:57.6]}
2... Nf6 {[%clk 0:02:59.2]} 3. Bg2 {[%clk 0:02:57.9]} 3... g6 {[%clk 0:02:59.7]}
4. c4 {[%clk 0:02:57.1]} 4... c6 {[%clk 0:02:59.4]} 5. O-O {[%clk 0:02:55.8]}
5... Bg7 {[%clk 0:02:59.4]} 6. d4 {[%clk 0:02:55.9]} 6... O-O {[%clk 0:02:59.2]}
7. Ne5 {[%clk 0:02:55.4]} 7... Nbd7 {[%clk 0:02:58.4]} 8. Nc3 {[%clk 0:02:55.4]}
8... e6 {[%clk 0:02:58.6]} 9. Bg5 {[%clk 0:02:51.5]} 9... h6 {[%clk 0:02:57.2]}
10. Nxd7 {[%clk 0:02:49.5]} 10... Bxd7 {[%clk 0:02:54.3]} 11. Bxf6 {[%clk
0:02:49.5]} 11... Qxf6 {[%clk 0:02:54]} 12. cxd5 {[%clk 0:02:46.1]} 12... exd5
{[%clk 0:02:52.9]} 13. e3 {[%clk 0:02:46.6]} 13... h5 {[%clk 0:02:51.2]} 14. b4
{[%clk 0:02:45]} 14... a6 {[%clk 0:02:50.2]} 15. Na4 {[%clk 0:02:42.4]} 15...
Rae8 {[%clk 0:02:46.8]} 16. Nc5 {[%clk 0:02:42.1]} 16... Bc8 {[%clk 0:02:47]}
17. a4 {[%clk 0:02:42.7]} 17... h4 {[%clk 0:02:45.7]} 18. b5 {[%clk 0:02:42.3]}
18... axb5 {[%clk 0:02:45.1]} 19. axb5 {[%clk 0:02:43.2]} 19... Bh6 {[%clk
0:02:40.8]} 20. Qf3 {[%clk 0:02:30.5]} 20... Qg5 {[%clk 0:02:33.3]} 21. bxc6
{[%clk 0:02:22.5]} 21... bxc6 {[%clk 0:02:32.6]} 22. Ra7 {[%clk 0:02:17.3]}
22... Bg4 {[%clk 0:02:28.3]} 23. Qf4 {[%clk 0:02:17.4]} 23... h3 {[%clk
0:02:18.2]} 24. Qxg5 {[%clk 0:02:03.4]} 24... Bxg5 {[%clk 0:02:16.8]} 25. Bh1
{[%clk 0:02:03.2]} 25... Rb8 {[%clk 0:02:11.6]} 26. Nd7 {[%clk 0:02:02.1]} 26...
Bxd7 {[%clk 0:02:10.4]} 27. Rxd7 {[%clk 0:02:03]} 27... Rb2 {[%clk 0:02:09.9]}
28. Bf3 {[%clk 0:01:49.5]} 28... f5 {[%clk 0:02:02.5]} 29. Rc1 {[%clk
0:01:45.9]} 29... Rf6 {[%clk 0:02:01.8]} 30. Rc7 {[%clk 0:01:39.7]} 30... Rb6
{[%clk 0:02:01.4]} 31. R7xc6 {[%clk 0:01:37.6]} 31... Rfxc6 {[%clk 0:01:56.5]}
32. Bxd5+ {[%clk 0:01:37.3]} 32... Kg7 {[%clk 0:01:56.1]} 33. Bxc6 {[%clk
0:01:35.7]} 33... Be7 {[%clk 0:01:55]} 34. Bf3 {[%clk 0:01:32.9]} 34... Rb2
{[%clk 0:01:51.2]} 35. Bd5 {[%clk 0:01:23.4]} 35... Rd2 {[%clk 0:01:43.1]} 36.
Bc4 {[%clk 0:01:20.8]} 36... g5 {[%clk 0:01:41.5]} 37. g4 {[%clk 0:01:17.8]}
37... f4 {[%clk 0:01:40.8]} 38. Bf1 {[%clk 0:01:14.8]} 38... fxe3 {[%clk
0:01:37.6]} 39. fxe3 {[%clk 0:01:15.7]} 39... Bd6 {[%clk 0:01:37.9]} 40. Bxh3
{[%clk 0:01:14]} 40... Bxh2+ {[%clk 0:01:37.6]} 41. Kf1 {[%clk 0:01:13.9]} 41...
Bg3 {[%clk 0:01:37.6]} 42. Bg2 {[%clk 0:01:07.6]} 42... Rf2+ {[%clk 0:01:36.8]}
43. Kg1 {[%clk 0:01:08]} 43... Re2 {[%clk 0:01:36.8]} 44. e4 {[%clk 0:01:06.1]}
44... Bf4 {[%clk 0:01:32.8]} 45. Rd1 {[%clk 0:01:00.6]} 45... Be3+ {[%clk
0:01:30.3]} 46. Kh1 {[%clk 0:00:57.7]} 46... Kf6 {[%clk 0:01:28.1]} 47. e5+
{[%clk 0:00:55.9]} 47... Ke6 {[%clk 0:01:27.9]} 48. Bf3 {[%clk 0:00:52.5]} 48...
Rf2 {[%clk 0:01:26.3]} 49. Be4 {[%clk 0:00:50.6]} 49... Bxd4 {[%clk 0:01:07.5]}
50. Rxd4 {[%clk 0:00:47.2]} 50... Kxe5 {[%clk 0:01:07.7]} 51. Ra4 {[%clk
0:00:39.4]} 51... Kf4 {[%clk 0:01:03.6]} 52. Bc6+ {[%clk 0:00:39.3]} 52... Kg3
{[%clk 0:01:03.2]} 53. Kg1 {[%clk 0:00:25.5]} 53... Rc2 {[%clk 0:01:01.9]} 54.
Bb5 {[%clk 0:00:20.7]} 54... Rc1+ {[%clk 0:00:59.8]} 55. Bf1 {[%clk 0:00:21]}
55... Re1 {[%clk 0:00:57.3]} 56. Rb4 {[%clk 0:00:18.5]} 56... Ra1 {[%clk
0:00:57.1]} 57. Rb3+ {[%clk 0:00:18.5]} 57... Kxg4 {[%clk 0:00:56]} 58. Kf2
{[%clk 0:00:19]} 58... Ra2+ {[%clk 0:00:55.1]} 59. Be2+ {[%clk 0:00:19.3]} 59...
Kf4 {[%clk 0:00:54]} 60. Rb4+ {[%clk 0:00:19.8]} 60... Kf5 {[%clk 0:00:53.8]}
61. Ke3 {[%clk 0:00:20.2]} 61... Ra3+ {[%clk 0:00:46.2]} 62. Bd3+ {[%clk
0:00:20.4]} 62... Ke5 {[%clk 0:00:46.7]} 63. Rb5+ {[%clk 0:00:20.6]} 63... Kf6
{[%clk 0:00:47]} 64. Rf5+ {[%clk 0:00:19.6]} 64... Ke6 {[%clk 0:00:42.6]} 65.
Rxg5 {[%clk 0:00:19.6]} 65... Kd6 {[%clk 0:00:43]} 66. Kd4 {[%clk 0:00:19.5]}
66... Ra1 {[%clk 0:00:42.7]} 67. Rg6+ {[%clk 0:00:19.5]} 67... Ke7 {[%clk
0:00:43]} 68. Rb6 {[%clk 0:00:17.4]} 68... Re1 {[%clk 0:00:41.6]} 69. Kd5 {[%clk
0:00:17.6]} 69... Rd1 {[%clk 0:00:41.4]} 70. Ke4 {[%clk 0:00:16.6]} 70... Re1+
{[%clk 0:00:41.1]} 71. Kf5 {[%clk 0:00:17]} 71... Rf1+ {[%clk 0:00:41.4]} 72.
Ke5 {[%clk 0:00:17.2]} 72... Ra1 {[%clk 0:00:36.7]} 73. Rb7+ {[%clk 0:00:16.8]}
73... Kd8 {[%clk 0:00:35.5]} 74. Kd6 {[%clk 0:00:13.9]} 74... Kc8 {[%clk
0:00:35.8]} 75. Rc7+ {[%clk 0:00:13.9]} 75... Kb8 {[%clk 0:00:35.8]} 76. Rc3
{[%clk 0:00:11.4]} 76... Rg1 {[%clk 0:00:33.3]} 77. Rb3+ {[%clk 0:00:09.9]}
77... Ka7 {[%clk 0:00:32.6]} 78. Kc6 {[%clk 0:00:08.4]} 78... Rc1+ {[%clk
0:00:32]} 79. Kd6 {[%clk 0:00:07.6]} 79... Rc8 {[%clk 0:00:30]} 80. Be4 {[%clk
0:00:07.4]} 80... Rc1 {[%clk 0:00:28.5]} 81. Bc6 {[%clk 0:00:06]} 81... Ka6
{[%clk 0:00:27.6]} 82. Kc7 {[%clk 0:00:05.3]} 82... Rc5 {[%clk 0:00:21.4]} 83.
Rb4 {[%clk 0:00:04]} 83... Ra5 {[%clk 0:00:18.3]} 84. Rh4 {[%clk 0:00:02.8]}
84... Ra1 {[%clk 0:00:18]} 85. Rb4 {[%clk 0:00:03.4]} 85... Ka5 {[%clk
0:00:17.5]} 86. Rb5+ {[%clk 0:00:03.9]} 86... Ka6 {[%clk 0:00:17.9]} 87. Rb8
{[%clk 0:00:04.2]} 87... Rc1 {[%clk 0:00:07.7]} 88. Ra8# {[%clk 0:00:04.4]} 1-0

[Event "Early-Titled-Tuesday-Blitz-October-03-2023"]
[Site "Chess.com"]
[Date "2023.10.03"]
[Round "6"]
[White "Vesper2018"]
[Black "UNSTOPPABLE_LEGEND"]
[Result "0-1"]
[WhiteElo "2575"]
[BlackElo "2459"]
[TimeControl "180+1"]
[EndTime "9:09:48 PDT"]
[Termination "UNSTOPPABLE_LEGEND won on time"]

1. e4 {[%clk 0:02:37.5]} 1... c5 {[%clk 0:02:59.1]} 2. Nc3 {[%clk 0:02:37.4]}
2... Nc6 {[%clk 0:02:58.3]} 3. Bb5 {[%clk 0:02:37.4]} 3... Nd4 {[%clk
0:02:58.3]} 4. Bc4 {[%clk 0:02:37.3]} 4... a6 {[%clk 0:02:40.2]} 5. a4 {[%clk
0:02:37]} 5... Nf6 {[%clk 0:02:39.5]} 6. Nge2 {[%clk 0:02:35.3]} 6... e6 {[%clk
0:02:38.9]} 7. d3 {[%clk 0:02:34.2]} 7... d5 {[%clk 0:02:38.9]} 8. exd5 {[%clk
0:02:34.4]} 8... exd5 {[%clk 0:02:39.8]} 9. Ba2 {[%clk 0:02:35]} 9... Nc6 {[%clk
0:02:39.6]} 10. O-O {[%clk 0:02:34.1]} 10... Be7 {[%clk 0:02:38.9]} 11. Nf4
{[%clk 0:02:32.1]} 11... Nb4 {[%clk 0:02:37.7]} 12. Bb3 {[%clk 0:02:29.7]} 12...
O-O {[%clk 0:02:36.4]} 13. Re1 {[%clk 0:02:28.6]} 13... Bf5 {[%clk 0:02:35.7]}
14. Na2 {[%clk 0:02:21]} 14... Nc6 {[%clk 0:02:29]} 15. c3 {[%clk 0:02:16.3]}
15... b5 {[%clk 0:02:19.1]} 16. Qf3 {[%clk 0:02:11.8]} 16... c4 {[%clk
0:02:09.1]} 17. Bc2 {[%clk 0:02:05.8]} 17... Bd6 {[%clk 0:02:02.5]} 18. Nxd5
{[%clk 0:01:55.4]} 18... Bxd3 {[%clk 0:01:50.7]} 19. Bxd3 {[%clk 0:01:51.7]}
19... cxd3 {[%clk 0:01:51.6]} 20. Nxf6+ {[%clk 0:01:48.5]} 20... Qxf6 {[%clk
0:01:51.8]} 21. Qxd3 {[%clk 0:01:44.5]} 21... bxa4 {[%clk 0:01:41.3]} 22. Be3
{[%clk 0:01:33.9]} 22... Ne5 {[%clk 0:01:39.8]} 23. Qe4 {[%clk 0:01:28.9]} 23...
Qg6 {[%clk 0:01:19]} 24. Bf4 {[%clk 0:01:14.8]} 24... Rfe8 {[%clk 0:01:11]} 25.
Qxg6 {[%clk 0:01:04.9]} 25... hxg6 {[%clk 0:01:08.1]} 26. Bxe5 {[%clk
0:00:58.8]} 26... Bxe5 {[%clk 0:01:05.6]} 27. Nb4 {[%clk 0:00:57.9]} 27... Bd6
{[%clk 0:01:01.2]} 28. Nd3 {[%clk 0:00:55.7]} 28... Rxe1+ {[%clk 0:01:00]} 29.
Rxe1 {[%clk 0:00:53.7]} 29... Rb8 {[%clk 0:00:55.7]} 30. g3 {[%clk 0:00:47.1]}
30... Rb3 {[%clk 0:00:52.2]} 31. Re8+ {[%clk 0:00:29.3]} 31... Kh7 {[%clk
0:00:50.7]} 32. Ra8 {[%clk 0:00:29.3]} 32... Rb6 {[%clk 0:00:29]} 33. Kf1 {[%clk
0:00:24.5]} 33... a3 {[%clk 0:00:28.6]} 34. bxa3 {[%clk 0:00:24.3]} 34... Bxa3
{[%clk 0:00:29.5]} 35. Ke2 {[%clk 0:00:24.4]} 35... g5 {[%clk 0:00:28.2]} 36.
Kd2 {[%clk 0:00:19.1]} 36... g4 {[%clk 0:00:22.2]} 37. c4 {[%clk 0:00:19]} 37...
Rh6 {[%clk 0:00:20.4]} 38. Kc3 {[%clk 0:00:18.3]} 38... Be7 {[%clk 0:00:18.6]}
39. c5 {[%clk 0:00:18.4]} 39... Rxh2 {[%clk 0:00:14.3]} 40. Rxa6 {[%clk
0:00:18.1]} 40... Bxc5 {[%clk 0:00:10.9]} 41. Nxc5 {[%clk 0:00:17.7]} 41... Rxf2
{[%clk 0:00:11.5]} 42. Rd6 {[%clk 0:00:15.2]} 42... Rf3+ {[%clk 0:00:11.2]} 43.
Rd3 {[%clk 0:00:15.4]} 43... Kg6 {[%clk 0:00:03.5]} 44. Ne4 {[%clk 0:00:12.2]}
44... Kf5 {[%clk 0:00:03.5]} 45. Kd4 {[%clk 0:00:11]} 45... Rf1 {[%clk
0:00:02.6]} 46. Nd2 {[%clk 0:00:07.4]} 46... Rf2 {[%clk 0:00:02.4]} 47. Ke3
{[%clk 0:00:05.4]} 47... Rg2 {[%clk 0:00:02.4]} 48. Ne4 {[%clk 0:00:05.6]} 48...
Ra2 {[%clk 0:00:02]} 49. Rd5+ {[%clk 0:00:05.6]} 49... Ke6 {[%clk 0:00:02.6]}
50. Rb5 {[%clk 0:00:05.9]} 50... g6 {[%clk 0:00:03]} 51. Kf4 {[%clk 0:00:05.3]}
51... f5 {[%clk 0:00:03.5]} 52. Rb6+ {[%clk 0:00:05.4]} 52... Ke7 {[%clk
0:00:03.1]} 53. Ng5 {[%clk 0:00:03.2]} 53... Ra4+ {[%clk 0:00:03.5]} 54. Ke5
{[%clk 0:00:03.2]} 54... Ra5+ {[%clk 0:00:03.9]} 55. Kd4 {[%clk 0:00:03.6]}
55... Ra3 {[%clk 0:00:04.3]} 56. Re6+ {[%clk 0:00:02.4]} 56... Kd7 {[%clk
0:00:04.3]} 57. Rxg6 {[%clk 0:00:02.8]} 57... Rxg3 {[%clk 0:00:04.4]} 58. Ke5
{[%clk 0:00:03.4]} 58... Rg1 {[%clk 0:00:04.6]} 59. Kxf5 {[%clk 0:00:03.9]}
59... g3 {[%clk 0:00:05.4]} 60. Ne4 {[%clk 0:00:03.8]} 60... g2 {[%clk
0:00:05.7]} 61. Ke5 {[%clk 0:00:04.4]} 61... Kc7 {[%clk 0:00:05.5]} 62. Rg7+
{[%clk 0:00:01.4]} 62... Kb6 {[%clk 0:00:06]} 63. Rg6+ {[%clk 0:00:01.9]} 63...
Ka5 {[%clk 0:00:06.6]} 64. Rg3 {[%clk 0:00:02.2]} 64... Kb4 {[%clk 0:00:06.8]}
65. Rg4 {[%clk 0:00:01.6]} 65... Ka3 {[%clk 0:00:06.4]} 66. Rg3+ {[%clk
0:00:02.2]} 66... Kb2 {[%clk 0:00:07.1]} 67. Ke6 {[%clk 0:00:01.7]} 67... Kc1
{[%clk 0:00:07.2]} 68. Ke5 {[%clk 0:00:02.3]} 68... Kc2 {[%clk 0:00:07.3]} 69.
Ke6 {[%clk 0:00:02.2]} 69... Kd1 {[%clk 0:00:07.4]} 70. Ke5 {[%clk 0:00:02.7]}
70... Ke2 {[%clk 0:00:07.7]} 71. Ng5 {[%clk 0:00:02.7]} 71... Kf2 {[%clk
0:00:07.6]} 72. Ne4+ {[%clk 0:00:03]} 72... Ke2 {[%clk 0:00:07.5]} 73. Ng5
{[%clk 0:00:03.4]} 73... Re1 {[%clk 0:00:06.2]} 74. Rxg2+ {[%clk 0:00:02.9]}
74... Kf1+ {[%clk 0:00:06.8]} 75. Ne4 {[%clk 0:00:03]} 75... Kxg2 {[%clk
0:00:07.7]} 76. Kf4 {[%clk 0:00:03.3]} 76... Ra1 {[%clk 0:00:07.6]} 77. Ng5
{[%clk 0:00:03.5]} 77... Ra8 {[%clk 0:00:08.5]} 78. Ne4 {[%clk 0:00:03.9]} 78...
Ra4 {[%clk 0:00:08.8]} 79. Ke3 {[%clk 0:00:04.2]} 79... Rb4 {[%clk 0:00:08.3]}
80. Kf4 {[%clk 0:00:04.6]} 80... Rb3 {[%clk 0:00:08.2]} 81. Ng5 {[%clk
0:00:03.9]} 81... Kf2 {[%clk 0:00:08.4]} 82. Ne4+ {[%clk 0:00:03.9]} 82... Ke2
{[%clk 0:00:09]} 83. Ng5 {[%clk 0:00:03.8]} 83... Rb4+ {[%clk 0:00:09.3]} 84.
Kf5 {[%clk 0:00:04.3]} 84... Ke3 {[%clk 0:00:09.3]} 85. Ne6 {[%clk 0:00:04.5]}
85... Rb5+ {[%clk 0:00:09.5]} 86. Kf6 {[%clk 0:00:05]} 86... Ke4 {[%clk
0:00:10]} 87. Ng5+ {[%clk 0:00:05]} 87... Kf4 {[%clk 0:00:10.2]} 88. Ne6+ {[%clk
0:00:05.4]} 88... Kg4 {[%clk 0:00:11.1]} 89. Nd4 {[%clk 0:00:04.5]} 89... Rd5
{[%clk 0:00:10.9]} 90. Ne6 {[%clk 0:00:04.6]} 90... Ra5 {[%clk 0:00:08.7]} 91.
Kg6 {[%clk 0:00:04.7]} 91... Ra6 {[%clk 0:00:08.3]} 92. Kf6 {[%clk 0:00:05.2]}
92... Ra5 {[%clk 0:00:08.9]} 93. Kg6 {[%clk 0:00:05.7]} 93... Rf5 {[%clk
0:00:08.9]} 94. Nd4 {[%clk 0:00:05.4]} 94... Rf4 {[%clk 0:00:09.3]} 95. Ne6
{[%clk 0:00:05.7]} 95... Rf1 {[%clk 0:00:09.5]} 96. Nd4 {[%clk 0:00:06]} 96...
Kf4 {[%clk 0:00:09.3]} 97. Ne6+ {[%clk 0:00:05.1]} 97... Ke5 {[%clk 0:00:09.5]}
98. Ng5 {[%clk 0:00:05.5]} 98... Rg1 {[%clk 0:00:09.8]} 99. Kh6 {[%clk
0:00:02.3]} 99... Kf5 {[%clk 0:00:10.3]} 100. Nh7 {[%clk 0:00:01.2]} 100... Rg6+
{[%clk 0:00:09.9]} 101. Kh5 {[%clk 0:00:01.4]} 101... Ra6 {[%clk 0:00:09.7]}
102. Ng5 {[%clk 0:00:01.6]} 102... Ra1 {[%clk 0:00:09.6]} 0-1

[Event "Early-Titled-Tuesday-Blitz-October-03-2023"]
[Site "Chess.com"]
[Date "2023.10.03"]
[Round "6"]
[White "Heydarli77"]
[Black "Henryk_S"]
[Result "0-1"]
[WhiteElo "2310"]
[BlackElo "2165"]
[TimeControl "180+1"]
[EndTime "9:09:56 PDT"]
[Termination "Henryk_S won on time"]

1. e4 {[%clk 0:02:58.8]} 1... e6 {[%clk 0:02:59.8]} 2. d4 {[%clk 0:02:57.9]}
2... d5 {[%clk 0:02:59.9]} 3. e5 {[%clk 0:02:54.7]} 3... c5 {[%clk 0:02:59.8]}
4. c3 {[%clk 0:02:54.5]} 4... Nc6 {[%clk 0:03:00.2]} 5. Nf3 {[%clk 0:02:54.4]}
5... Qb6 {[%clk 0:03:00.2]} 6. a3 {[%clk 0:02:51.5]} 6... Bd7 {[%clk 0:03:00.4]}
7. b4 {[%clk 0:02:49.8]} 7... cxd4 {[%clk 0:03:01]} 8. cxd4 {[%clk 0:02:48.2]}
8... Rc8 {[%clk 0:03:01.6]} 9. Bb2 {[%clk 0:02:47.8]} 9... Na5 {[%clk
0:03:01.3]} 10. Nbd2 {[%clk 0:02:45.9]} 10... Nc4 {[%clk 0:03:01]} 11. Qb3
{[%clk 0:02:37.9]} 11... Bb5 {[%clk 0:02:37.8]} 12. Rd1 {[%clk 0:02:23.2]} 12...
Ne7 {[%clk 0:02:30]} 13. a4 {[%clk 0:02:16.9]} 13... Nxd2 {[%clk 0:02:27.9]} 14.
Bxb5+ {[%clk 0:02:12.9]} 14... Qxb5 {[%clk 0:02:25.8]} 15. Kxd2 {[%clk
0:02:09.3]} 15... Qc4 {[%clk 0:02:04]} 16. Qxc4 {[%clk 0:02:08.5]} 16... dxc4
{[%clk 0:01:58.3]} 17. Bc3 {[%clk 0:02:06.2]} 17... Nd5 {[%clk 0:01:58.2]} 18.
b5 {[%clk 0:02:06]} 18... Be7 {[%clk 0:01:41.7]} 19. Kc2 {[%clk 0:02:05.3]}
19... Kd7 {[%clk 0:01:38.1]} 20. Nd2 {[%clk 0:02:00.1]} 20... Rc7 {[%clk
0:01:22]} 21. Ne4 {[%clk 0:01:59.9]} 21... b6 {[%clk 0:01:21.5]} 22. g3 {[%clk
0:01:59.7]} 22... Rhc8 {[%clk 0:01:14.3]} 23. Ra1 {[%clk 0:01:58.8]} 23... Nb4+
{[%clk 0:01:12.7]} 24. Bxb4 {[%clk 0:01:56.1]} 24... Bxb4 {[%clk 0:01:13.6]} 25.
Rhd1 {[%clk 0:01:53.6]} 25... h6 {[%clk 0:01:05.6]} 26. d5 {[%clk 0:01:52.9]}
26... exd5 {[%clk 0:01:05.7]} 27. Rxd5+ {[%clk 0:01:51.8]} 27... Ke6 {[%clk
0:01:06.1]} 28. Rad1 {[%clk 0:01:51.4]} 28... c3 {[%clk 0:00:52.2]} 29. f4
{[%clk 0:01:49.2]} 29... g6 {[%clk 0:00:42.1]} 30. Nd6 {[%clk 0:01:40.7]} 30...
Bxd6 {[%clk 0:00:37.9]} 31. Rxd6+ {[%clk 0:01:32.3]} 31... Ke7 {[%clk
0:00:37.4]} 32. R1d3 {[%clk 0:01:31.2]} 32... h5 {[%clk 0:00:32.7]} 33. R6d4
{[%clk 0:01:21.9]} 33... Ke6 {[%clk 0:00:30.9]} 34. h3 {[%clk 0:00:25.3]} 34...
Kf5 {[%clk 0:00:28.5]} 35. Rd6 {[%clk 0:00:24.7]} 35... Ke4 {[%clk 0:00:17.7]}
36. R6d4+ {[%clk 0:00:24.2]} 36... Kf5 {[%clk 0:00:17.9]} 37. Rd6 {[%clk
0:00:24.4]} 37... Ke4 {[%clk 0:00:18.2]} 38. Rf6 {[%clk 0:00:23.7]} 38... Re8
{[%clk 0:00:10.6]} 39. Rd1 {[%clk 0:00:22.1]} 39... Re6 {[%clk 0:00:10.2]} 40.
Re1+ {[%clk 0:00:22]} 40... Kf3 {[%clk 0:00:10.3]} 41. g4 {[%clk 0:00:22.1]}
41... hxg4 {[%clk 0:00:08.4]} 42. hxg4 {[%clk 0:00:21.8]} 42... Kxg4 {[%clk
0:00:09]} 43. Rxe6 {[%clk 0:00:21.4]} 43... fxe6 {[%clk 0:00:08]} 44. Rg1+
{[%clk 0:00:21.5]} 44... Kf5 {[%clk 0:00:07.8]} 45. Rxg6 {[%clk 0:00:21.2]}
45... Kxf4 {[%clk 0:00:08.2]} 46. Rxe6 {[%clk 0:00:20.7]} 46... Kf5 {[%clk
0:00:07.7]} 47. Re8 {[%clk 0:00:20.3]} 47... Rc4 {[%clk 0:00:07.5]} 48. e6
{[%clk 0:00:19.8]} 48... Rxa4 {[%clk 0:00:06.9]} 49. Kxc3 {[%clk 0:00:19.8]}
49... Re4 {[%clk 0:00:06.6]} 50. e7 {[%clk 0:00:19.1]} 50... Kf6 {[%clk
0:00:06.8]} 51. Kd3 {[%clk 0:00:18.3]} 51... Rxe7 {[%clk 0:00:06.6]} 52. Ra8
{[%clk 0:00:18]} 52... Rc7 {[%clk 0:00:06]} 53. Kd4 {[%clk 0:00:17.6]} 53... Ke6
{[%clk 0:00:06.1]} 54. Re8+ {[%clk 0:00:17.5]} 54... Kd7 {[%clk 0:00:05.9]} 55.
Rh8 {[%clk 0:00:17.5]} 55... Kd6 {[%clk 0:00:05.4]} 56. Rh6+ {[%clk 0:00:17.4]}
56... Kd7 {[%clk 0:00:05.7]} 57. Rh7+ {[%clk 0:00:17.6]} 57... Kc8 {[%clk
0:00:05.8]} 58. Rh8+ {[%clk 0:00:17.7]} 58... Kb7 {[%clk 0:00:06.1]} 59. Rh5
{[%clk 0:00:18]} 59... Rd7+ {[%clk 0:00:06.2]} 60. Kc4 {[%clk 0:00:17.9]} 60...
a6 {[%clk 0:00:05.9]} 61. Kb4 {[%clk 0:00:17.3]} 61... axb5 {[%clk 0:00:04.9]}
62. Kxb5 {[%clk 0:00:17.4]} 62... Rf7 {[%clk 0:00:04]} 63. Rh6 {[%clk
0:00:17.3]} 63... Rf5+ {[%clk 0:00:04.1]} 64. Kb4 {[%clk 0:00:17.4]} 64... Rf4+
{[%clk 0:00:04.5]} 65. Kc3 {[%clk 0:00:17.6]} 65... Rf3+ {[%clk 0:00:04.6]} 66.
Kd4 {[%clk 0:00:17.9]} 66... Rf4+ {[%clk 0:00:04.7]} 67. Ke5 {[%clk 0:00:18.1]}
67... Rf7 {[%clk 0:00:04.6]} 68. Kd5 {[%clk 0:00:17.8]} 68... Rc7 {[%clk
0:00:04.8]} 69. Rg6 {[%clk 0:00:17.6]} 69... Rc5+ {[%clk 0:00:04.5]} 70. Kd4
{[%clk 0:00:17.7]} 70... Rc7 {[%clk 0:00:04.5]} 71. Rd6 {[%clk 0:00:18]} 71...
Rc6 {[%clk 0:00:04.5]} 72. Rd7+ {[%clk 0:00:18.2]} 72... Rc7 {[%clk 0:00:04.9]}
73. Rd8 {[%clk 0:00:18.3]} 73... Rc6 {[%clk 0:00:04.7]} 74. Kd5 {[%clk
0:00:18.3]} 74... Rc5+ {[%clk 0:00:05.1]} 75. Kd6 {[%clk 0:00:18.3]} 75... Rc3
{[%clk 0:00:04.9]} 76. Re8 {[%clk 0:00:18.5]} 76... Rd3+ {[%clk 0:00:04.6]} 77.
Ke6 {[%clk 0:00:17.3]} 77... b5 {[%clk 0:00:04.9]} 78. Rh8 {[%clk 0:00:16.4]}
78... Kb6 {[%clk 0:00:04.7]} 79. Rb8+ {[%clk 0:00:16.1]} 79... Kc5 {[%clk
0:00:04.5]} 80. Rc8+ {[%clk 0:00:15.9]} 80... Kb4 {[%clk 0:00:04.8]} 81. Ke5
{[%clk 0:00:15.9]} 81... Rd2 {[%clk 0:00:04.3]} 82. Ke4 {[%clk 0:00:15.8]} 82...
Rd7 {[%clk 0:00:04.3]} 83. Rb8 {[%clk 0:00:15.2]} 83... Ka4 {[%clk 0:00:04.4]}
84. Ke3 {[%clk 0:00:14.4]} 84... Kb4 {[%clk 0:00:03.9]} 85. Ke2 {[%clk
0:00:13.7]} 85... Kc4 {[%clk 0:00:03.7]} 86. Rc8+ {[%clk 0:00:13.7]} 86... Kb3
{[%clk 0:00:04]} 87. Rh8 {[%clk 0:00:13.3]} 87... b4 {[%clk 0:00:04]} 88. Rh3+
{[%clk 0:00:13.2]} 88... Kb2 {[%clk 0:00:04.3]} 89. Rh8 {[%clk 0:00:11.6]} 89...
b3 {[%clk 0:00:04.4]} 90. Rb8 {[%clk 0:00:11.7]} 90... Kc2 {[%clk 0:00:04.6]}
91. Rc8+ {[%clk 0:00:11.8]} 91... Kb1 {[%clk 0:00:05]} 92. Rb8 {[%clk
0:00:11.9]} 92... b2 {[%clk 0:00:04.5]} 93. Ra8 {[%clk 0:00:12]} 93... Rd5
{[%clk 0:00:02.6]} 94. Ra7 {[%clk 0:00:10.9]} 94... Kc2 {[%clk 0:00:02.6]} 95.
Rc7+ {[%clk 0:00:10.6]} 95... Kb3 {[%clk 0:00:02.9]} 96. Rb7+ {[%clk 0:00:10.6]}
96... Kc3 {[%clk 0:00:03.3]} 97. Rd7 {[%clk 0:00:09.5]} 97... Rxd7 {[%clk
0:00:02.1]} 98. Ke3 {[%clk 0:00:09.2]} 98... b1=Q {[%clk 0:00:02.6]} 99. Kf4
{[%clk 0:00:09]} 99... Qe1 {[%clk 0:00:03.1]} 100. Kf3 {[%clk 0:00:03.1]} 100...
Rd2 {[%clk 0:00:04]} 101. Kg4 {[%clk 0:00:01.3]} 101... Rf2 {[%clk 0:00:04.6]}
102. Kg3 {[%clk 0:00:01.3]} 102... Qg1+ {[%clk 0:00:05]} 0-1